[Event "*** SCC Grand Prix: Titled Tuesday Blitz"]
[Site "Chess.com"]
[Date "2020.07.21"]
[Round "2"]
[White "Jungle_Jaguar"]
[Black "Duhless"]
[Result "0-1"]
[WhiteElo "2590"]
[BlackElo "2958"]
[TimeControl "180+1"]
[EndTime "10:17:44 PDT"]
[Termination "Duhless won on time"]

1. e4 {[%clk 0:03:00.9]} 1... g6 {[%clk 0:03:00.9]} 2. d4 {[%clk 0:02:59.9]}
2... Bg7 {[%clk 0:03:01.4]} 3. Nc3 {[%clk 0:03:00.5]} 3... d6 {[%clk 0:03:01.8]}
4. Nf3 {[%clk 0:03:00.6]} 4... Nf6 {[%clk 0:03:01.4]} 5. Be2 {[%clk 0:02:58]}
5... O-O {[%clk 0:03:01.8]} 6. O-O {[%clk 0:02:58.6]} 6... a6 {[%clk 0:03:02.4]}
7. a4 {[%clk 0:02:58.8]} 7... Nc6 {[%clk 0:03:01.8]} 8. h3 {[%clk 0:02:51.7]}
8... b6 {[%clk 0:03:01.1]} 9. Re1 {[%clk 0:02:49.6]} 9... e6 {[%clk 0:03:00.8]}
10. Bg5 {[%clk 0:02:47.9]} 10... h6 {[%clk 0:02:59.9]} 11. Be3 {[%clk
0:02:48.3]} 11... Bb7 {[%clk 0:02:59.5]} 12. Qd2 {[%clk 0:02:46.4]} 12... Kh7
{[%clk 0:02:59.5]} 13. Rad1 {[%clk 0:02:41.1]} 13... Ne7 {[%clk 0:02:58.7]} 14.
Bd3 {[%clk 0:02:38.1]} 14... d5 {[%clk 0:02:57.9]} 15. e5 {[%clk 0:02:31.1]}
15... Ne4 {[%clk 0:02:57.7]} 16. Qc1 {[%clk 0:02:25.2]} 16... Qe8 {[%clk
0:02:47]} 17. Bxe4 {[%clk 0:02:13.3]} 17... dxe4 {[%clk 0:02:46.7]} 18. Nd2
{[%clk 0:02:13.6]} 18... Nf5 {[%clk 0:02:45.9]} 19. Ndxe4 {[%clk 0:02:12.1]}
19... Bxe4 {[%clk 0:02:45]} 20. Nxe4 {[%clk 0:02:11.3]} 20... Qxa4 {[%clk
0:02:45.6]} 21. c3 {[%clk 0:02:07.7]} 21... Qc6 {[%clk 0:02:43.1]} 22. Bf4
{[%clk 0:02:06.1]} 22... a5 {[%clk 0:02:41.1]} 23. f3 {[%clk 0:01:13.7]} 23...
a4 {[%clk 0:02:34.6]} 24. Kh2 {[%clk 0:01:13.2]} 24... Ne7 {[%clk 0:02:28.1]}
25. Bg3 {[%clk 0:00:57.3]} 25... b5 {[%clk 0:02:16.7]} 26. Bh4 {[%clk
0:00:55.5]} 26... Nd5 {[%clk 0:02:16.3]} 27. Nc5 {[%clk 0:00:40.9]} 27... Ra7
{[%clk 0:01:57.9]} 28. c4 {[%clk 0:00:14.7]} 28... bxc4 {[%clk 0:01:57.4]} 29.
Qxc4 {[%clk 0:00:15.6]} 29... Rb8 {[%clk 0:01:56.4]} 30. Ra1 {[%clk 0:00:13]}
30... Rxb2 {[%clk 0:01:54.2]} 31. Rxa4 {[%clk 0:00:13.1]} 31... Rxa4 {[%clk
0:01:52]} 32. Qxa4 {[%clk 0:00:14]} 32... Qxa4 {[%clk 0:01:48.3]} 33. Nxa4
{[%clk 0:00:14.9]} 33... Rb4 {[%clk 0:01:48.6]} 34. Nc5 {[%clk 0:00:12.8]} 34...
Rxd4 {[%clk 0:01:48.4]} 35. Bf2 {[%clk 0:00:11.7]} 35... Rd2 {[%clk 0:01:47]}
36. Bg3 {[%clk 0:00:12.1]} 36... Rc2 {[%clk 0:01:42.7]} 37. Nb7 {[%clk
0:00:12.4]} 37... h5 {[%clk 0:01:39.3]} 38. h4 {[%clk 0:00:12.4]} 38... Bh6
{[%clk 0:01:38.3]} 39. Nd8 {[%clk 0:00:11]} 39... Kg7 {[%clk 0:01:36.9]} 40. Kh3
{[%clk 0:00:10.9]} 40... Rd2 {[%clk 0:01:24]} 41. Nc6 {[%clk 0:00:08.6]} 41...
Bf4 {[%clk 0:01:15.5]} 42. Re4 {[%clk 0:00:08.5]} 42... Bxg3 {[%clk 0:01:12.3]}
43. Kxg3 {[%clk 0:00:09.4]} 43... Rc2 {[%clk 0:01:10.2]} 44. Nd8 {[%clk
0:00:09.5]} 44... Kf8 {[%clk 0:00:56.7]} 45. Ra4 {[%clk 0:00:06]} 45... Ke7
{[%clk 0:00:55.3]} 46. Nb7 {[%clk 0:00:04.2]} 46... Ne3 {[%clk 0:00:55]} 47. Kh3
{[%clk 0:00:03.2]} 47... Nxg2 {[%clk 0:00:51.7]} 48. Na5 {[%clk 0:00:03.7]}
48... Ne3 {[%clk 0:00:46.7]} 49. Re4 {[%clk 0:00:04.2]} 49... Nf1 {[%clk
0:00:45.6]} 0-1

[Event "*** SCC Grand Prix: Titled Tuesday Blitz"]
[Site "Chess.com"]
[Date "2020.07.21"]
[Round "2"]
[White "saisree"]
[Black "harlem4brew"]
[Result "1-0"]
[WhiteElo "2405"]
[BlackElo "2120"]
[TimeControl "180+1"]
[EndTime "10:17:46 PDT"]
[Termination "saisree won by checkmate"]

1. Nf3 {[%clk 0:03:00.9]} 1... d5 {[%clk 0:02:53.1]} 2. e3 {[%clk 0:02:58.5]}
2... c5 {[%clk 0:02:52.7]} 3. b3 {[%clk 0:02:57.4]} 3... Nc6 {[%clk 0:02:50.8]}
4. Bb2 {[%clk 0:02:56.6]} 4... Nf6 {[%clk 0:02:50.5]} 5. d4 {[%clk 0:02:53.3]}
5... cxd4 {[%clk 0:02:46.3]} 6. exd4 {[%clk 0:02:51]} 6... Bg4 {[%clk
0:02:44.4]} 7. Nbd2 {[%clk 0:02:44.9]} 7... Ne4 {[%clk 0:02:43.7]} 8. h3 {[%clk
0:02:43.1]} 8... Bh5 {[%clk 0:02:40]} 9. g4 {[%clk 0:02:35.4]} 9... Bg6 {[%clk
0:02:38.7]} 10. Ne5 {[%clk 0:02:19.5]} 10... Nxe5 {[%clk 0:02:36.7]} 11. dxe5
{[%clk 0:02:19.6]} 11... Qb6 {[%clk 0:02:35.9]} 12. Nxe4 {[%clk 0:02:16.4]}
12... Bxe4 {[%clk 0:02:34.9]} 13. Rg1 {[%clk 0:02:05.6]} 13... e6 {[%clk
0:02:33.2]} 14. Bd3 {[%clk 0:01:39.9]} 14... Bc5 {[%clk 0:02:30.4]} 15. Qe2
{[%clk 0:01:35.8]} 15... Bxd3 {[%clk 0:02:20.9]} 16. cxd3 {[%clk 0:01:36.7]}
16... Qb4+ {[%clk 0:02:20.5]} 17. Kf1 {[%clk 0:01:36.1]} 17... Qf4 {[%clk
0:02:13.5]} 18. Rg3 {[%clk 0:01:31.5]} 18... Qb4 {[%clk 0:02:03.4]} 19. Kg2
{[%clk 0:01:27.4]} 19... Qb6 {[%clk 0:02:00.5]} 20. d4 {[%clk 0:01:13]} 20...
Be7 {[%clk 0:01:58]} 21. Rc1 {[%clk 0:01:03.6]} 21... Bg5 {[%clk 0:01:54.3]} 22.
Rc2 {[%clk 0:00:59]} 22... O-O {[%clk 0:01:52]} 23. Qd1 {[%clk 0:00:49.2]} 23...
Rac8 {[%clk 0:01:48.5]} 24. Rgc3 {[%clk 0:00:49.2]} 24... Rb8 {[%clk 0:01:43.3]}
25. Kg3 {[%clk 0:00:47.9]} 25... Qd8 {[%clk 0:01:39.1]} 26. f4 {[%clk
0:00:46.6]} 26... Bh4+ {[%clk 0:01:37.8]} 27. Kg2 {[%clk 0:00:43.9]} 27... f6
{[%clk 0:01:35.1]} 28. Ba3 {[%clk 0:00:43.4]} 28... Rf7 {[%clk 0:01:30.3]} 29.
Bd6 {[%clk 0:00:43.5]} 29... Ra8 {[%clk 0:01:29]} 30. Qc1 {[%clk 0:00:41.9]}
30... fxe5 {[%clk 0:00:53.5]} 31. Rc8 {[%clk 0:00:21.7]} 31... exf4 {[%clk
0:00:43.1]} 32. Rxa8 {[%clk 0:00:21.4]} 32... f3+ {[%clk 0:00:42.3]} 33. Kf1
{[%clk 0:00:21.3]} 33... h5 {[%clk 0:00:33.6]} 34. Rxd8+ {[%clk 0:00:19.7]}
34... Bxd8 {[%clk 0:00:32.1]} 35. Rc8 {[%clk 0:00:20.2]} 35... hxg4 {[%clk
0:00:28.7]} 36. Rxd8+ {[%clk 0:00:19.6]} 36... Kh7 {[%clk 0:00:27.3]} 37. hxg4
{[%clk 0:00:20.2]} 37... Kg6 {[%clk 0:00:26]} 38. Re8 {[%clk 0:00:18.3]} 38...
Rf6 {[%clk 0:00:25.4]} 39. Be5 {[%clk 0:00:18.6]} 39... Rf7 {[%clk 0:00:23.8]}
40. Rxe6+ {[%clk 0:00:18.5]} 40... Kh7 {[%clk 0:00:23.4]} 41. Qg5 {[%clk
0:00:19.1]} 41... Kg8 {[%clk 0:00:22.8]} 42. Re8+ {[%clk 0:00:18.6]} 42... Kh7
{[%clk 0:00:22.3]} 43. Qh5# {[%clk 0:00:17.5]} 1-0

[Event "*** SCC Grand Prix: Titled Tuesday Blitz"]
[Site "Chess.com"]
[Date "2020.07.21"]
[Round "2"]
[White "ajdemipopushi"]
[Black "BeanScreen"]
[Result "1-0"]
[WhiteElo "2335"]
[BlackElo "2686"]
[TimeControl "180+1"]
[EndTime "10:17:47 PDT"]
[Termination "ajdemipopushi won by checkmate"]

1. Nf3 {[%clk 0:03:00.9]} 1... d5 {[%clk 0:03:00]} 2. g3 {[%clk 0:03:01]} 2...
Nf6 {[%clk 0:03:00.9]} 3. c4 {[%clk 0:03:01]} 3... dxc4 {[%clk 0:03:00.8]} 4.
Bg2 {[%clk 0:03:00.8]} 4... c6 {[%clk 0:03:00.6]} 5. O-O {[%clk 0:02:59.7]} 5...
Bf5 {[%clk 0:03:00.9]} 6. Na3 {[%clk 0:02:52.2]} 6... b5 {[%clk 0:03:00.1]} 7.
b3 {[%clk 0:02:38.4]} 7... cxb3 {[%clk 0:03:01]} 8. Qxb3 {[%clk 0:02:37.8]} 8...
Nbd7 {[%clk 0:02:56.4]} 9. d3 {[%clk 0:02:31.8]} 9... e6 {[%clk 0:02:43.1]} 10.
Nd4 {[%clk 0:02:10.8]} 10... a6 {[%clk 0:02:41]} 11. Nxc6 {[%clk 0:01:48.2]}
11... Qb6 {[%clk 0:02:40.1]} 12. Be3 {[%clk 0:01:26.6]} 12... Bc5 {[%clk
0:02:39.9]} 13. Bxc5 {[%clk 0:01:26]} 13... Nxc5 {[%clk 0:02:39.9]} 14. Qb2
{[%clk 0:00:56.9]} 14... Rc8 {[%clk 0:02:36.3]} 15. Nc4 {[%clk 0:00:49.9]} 15...
Qc7 {[%clk 0:02:32.5]} 16. N4e5 {[%clk 0:00:48.3]} 16... O-O {[%clk 0:02:31.4]}
17. Rac1 {[%clk 0:00:47.5]} 17... Qb6 {[%clk 0:01:57.7]} 18. Qd4 {[%clk
0:00:40.7]} 18... Ncd7 {[%clk 0:01:23]} 19. Ne7+ {[%clk 0:00:33.2]} 19... Kh8
{[%clk 0:01:23.9]} 20. Qxb6 {[%clk 0:00:33.4]} 20... Nxb6 {[%clk 0:01:24.8]} 21.
Nxc8 {[%clk 0:00:33.4]} 21... Nxc8 {[%clk 0:01:25.1]} 22. Bb7 {[%clk 0:00:31.7]}
22... Nd6 {[%clk 0:01:23.9]} 23. Bxa6 {[%clk 0:00:31.4]} 23... Ra8 {[%clk
0:01:22.1]} 24. Rc6 {[%clk 0:00:30.8]} 24... Nfe8 {[%clk 0:01:20.7]} 25. Rb1
{[%clk 0:00:21.6]} 25... f6 {[%clk 0:01:21.3]} 26. Nf3 {[%clk 0:00:18.7]} 26...
e5 {[%clk 0:01:07.4]} 27. Bxb5 {[%clk 0:00:17.1]} 27... Bd7 {[%clk 0:01:07.6]}
28. Rxd6 {[%clk 0:00:16.1]} 28... Bxb5 {[%clk 0:01:05.3]} 29. Rb6 {[%clk
0:00:15.3]} 29... Bd7 {[%clk 0:01:04.1]} 30. R1b2 {[%clk 0:00:14.3]} 30... Kg8
{[%clk 0:01:03.5]} 31. Rb8 {[%clk 0:00:13.4]} 31... Ra3 {[%clk 0:01:00.6]} 32.
Nd2 {[%clk 0:00:13.4]} 32... Kf7 {[%clk 0:01:00]} 33. f3 {[%clk 0:00:13.4]}
33... Nd6 {[%clk 0:00:59.1]} 34. R8b6 {[%clk 0:00:11.1]} 34... Nf5 {[%clk
0:00:57.9]} 35. Nc4 {[%clk 0:00:08.2]} 35... Kg6 {[%clk 0:00:55.6]} 36. Nxa3
{[%clk 0:00:07.8]} 36... Ne3 {[%clk 0:00:53.5]} 37. Nc4 {[%clk 0:00:08.2]} 37...
Nd1 {[%clk 0:00:53.6]} 38. Rb7 {[%clk 0:00:07.4]} 38... Bh3 {[%clk 0:00:53]} 39.
a4 {[%clk 0:00:06.2]} 39... h5 {[%clk 0:00:47.3]} 40. a5 {[%clk 0:00:06.3]}
40... e4 {[%clk 0:00:47.2]} 41. fxe4 {[%clk 0:00:06.4]} 41... h4 {[%clk
0:00:47.3]} 42. gxh4 {[%clk 0:00:06.1]} 42... Kh5 {[%clk 0:00:48.1]} 43. a6
{[%clk 0:00:05.1]} 43... Kxh4 {[%clk 0:00:46.6]} 44. a7 {[%clk 0:00:05.3]} 44...
g5 {[%clk 0:00:47.3]} 45. a8=Q {[%clk 0:00:05.4]} 45... Kg4 {[%clk 0:00:48.2]}
46. Qh8 {[%clk 0:00:05.6]} 46... Nc3 {[%clk 0:00:47.3]} 47. Qxf6 {[%clk
0:00:05.3]} 47... Bf1 {[%clk 0:00:42.3]} 48. Qf3+ {[%clk 0:00:04.8]} 48... Kh4
{[%clk 0:00:42.6]} 49. Rh7# {[%clk 0:00:05.4]} 1-0

[Event "*** SCC Grand Prix: Titled Tuesday Blitz"]
[Site "Chess.com"]
[Date "2020.07.21"]
[Round "2"]
[White "Ermito2020"]
[Black "gena217"]
[Result "0-1"]
[WhiteElo "2580"]
[BlackElo "2910"]
[TimeControl "180+1"]
[EndTime "10:17:48 PDT"]
[Termination "gena217 won on time"]

1. e4 {[%clk 0:03:00.9]} 1... c6 {[%clk 0:02:55.4]} 2. d4 {[%clk 0:02:59.8]}
2... d5 {[%clk 0:02:56.3]} 3. e5 {[%clk 0:02:59.8]} 3... Bf5 {[%clk 0:02:56]} 4.
Nf3 {[%clk 0:03:00.3]} 4... e6 {[%clk 0:02:56.1]} 5. Be2 {[%clk 0:03:00.9]} 5...
Ne7 {[%clk 0:02:53.6]} 6. O-O {[%clk 0:03:01.3]} 6... c5 {[%clk 0:02:53.9]} 7.
c4 {[%clk 0:02:57.4]} 7... Nbc6 {[%clk 0:02:53.3]} 8. Nc3 {[%clk 0:02:54.5]}
8... dxc4 {[%clk 0:02:52.6]} 9. dxc5 {[%clk 0:02:38.8]} 9... Nd5 {[%clk
0:02:52.2]} 10. Nd4 {[%clk 0:02:35.2]} 10... Nxc3 {[%clk 0:02:47.3]} 11. bxc3
{[%clk 0:02:34.8]} 11... Bxc5 {[%clk 0:02:47.5]} 12. Nxf5 {[%clk 0:02:33.6]}
12... exf5 {[%clk 0:02:48.4]} 13. Bf4 {[%clk 0:02:28.5]} 13... O-O {[%clk
0:02:12.6]} 14. Bxc4 {[%clk 0:02:27.9]} 14... Qe7 {[%clk 0:02:03.7]} 15. Qc2
{[%clk 0:02:08.4]} 15... g6 {[%clk 0:01:45]} 16. e6 {[%clk 0:01:38.8]} 16... f6
{[%clk 0:01:32.7]} 17. Rad1 {[%clk 0:01:37.3]} 17... Rfd8 {[%clk 0:01:16.1]} 18.
Rd7 {[%clk 0:01:09.9]} 18... Rxd7 {[%clk 0:01:14.9]} 19. exd7+ {[%clk
0:01:10.8]} 19... Kg7 {[%clk 0:01:15.7]} 20. Rd1 {[%clk 0:01:07.1]} 20... Rd8
{[%clk 0:01:12]} 21. Qd2 {[%clk 0:01:02.8]} 21... Ne5 {[%clk 0:01:09]} 22. Bxe5
{[%clk 0:00:51.2]} 22... fxe5 {[%clk 0:01:09.9]} 23. Qd5 {[%clk 0:00:48.8]}
23... e4 {[%clk 0:01:01.7]} 24. h3 {[%clk 0:00:33.7]} 24... e3 {[%clk
0:01:00.8]} 25. fxe3 {[%clk 0:00:33.7]} 25... Qxe3+ {[%clk 0:01:00.2]} 26. Kh1
{[%clk 0:00:34.3]} 26... b6 {[%clk 0:00:48.3]} 27. Qf7+ {[%clk 0:00:33.8]} 27...
Kh6 {[%clk 0:00:48.1]} 28. Be6 {[%clk 0:00:28.3]} 28... Qxc3 {[%clk 0:00:41.5]}
29. Qe8 {[%clk 0:00:24.9]} 29... Qf6 {[%clk 0:00:41]} 30. Rf1 {[%clk 0:00:23]}
30... Kg7 {[%clk 0:00:29.6]} 31. g4 {[%clk 0:00:14.1]} 31... f4 {[%clk
0:00:25.9]} 32. Kg2 {[%clk 0:00:10.2]} 32... Qb2+ {[%clk 0:00:20.1]} 33. Kh1
{[%clk 0:00:10.3]} 33... Qf6 {[%clk 0:00:13.2]} 34. Kg2 {[%clk 0:00:10.2]} 34...
f3+ {[%clk 0:00:11.6]} 35. Rxf3 {[%clk 0:00:09.1]} 35... Qb2+ {[%clk 0:00:10.5]}
36. Kf1 {[%clk 0:00:05.8]} 36... Qc1+ {[%clk 0:00:07.3]} 37. Ke2 {[%clk
0:00:05.8]} 37... Qc2+ {[%clk 0:00:07.5]} 38. Kf1 {[%clk 0:00:06.2]} 38... Qd1+
{[%clk 0:00:07.4]} 39. Kg2 {[%clk 0:00:02.6]} 39... Qe2+ {[%clk 0:00:07.1]} 0-1

[Event "*** SCC Grand Prix: Titled Tuesday Blitz"]
[Site "Chess.com"]
[Date "2020.07.21"]
[Round "2"]
[White "ThePatrick27"]
[Black "Sam_ChessMood"]
[Result "0-1"]
[WhiteElo "2535"]
[BlackElo "2817"]
[TimeControl "180+1"]
[EndTime "10:17:48 PDT"]
[Termination "Sam_ChessMood won by resignation"]

1. d4 {[%clk 0:03:00.9]} 1... d5 {[%clk 0:02:58.8]} 2. c4 {[%clk 0:02:57.6]}
2... c6 {[%clk 0:02:59]} 3. Nf3 {[%clk 0:02:52.1]} 3... Nf6 {[%clk 0:02:59.1]}
4. Nc3 {[%clk 0:02:49.6]} 4... dxc4 {[%clk 0:02:58.9]} 5. a4 {[%clk 0:02:49.4]}
5... Bf5 {[%clk 0:02:56.4]} 6. e3 {[%clk 0:02:49.6]} 6... e6 {[%clk 0:02:53.8]}
7. Bxc4 {[%clk 0:02:50.3]} 7... Bb4 {[%clk 0:02:53.2]} 8. O-O {[%clk 0:02:50.9]}
8... O-O {[%clk 0:02:48.2]} 9. Qe2 {[%clk 0:02:50.7]} 9... Bg6 {[%clk
0:02:46.8]} 10. Ne5 {[%clk 0:02:41.4]} 10... Nbd7 {[%clk 0:02:46.4]} 11. Nxg6
{[%clk 0:02:41.2]} 11... hxg6 {[%clk 0:02:47.3]} 12. Rd1 {[%clk 0:02:41.4]}
12... Qe7 {[%clk 0:02:35.6]} 13. e4 {[%clk 0:02:06.1]} 13... e5 {[%clk
0:02:34.4]} 14. d5 {[%clk 0:02:01]} 14... a5 {[%clk 0:02:13.4]} 15. f3 {[%clk
0:01:26.8]} 15... Rac8 {[%clk 0:01:43.2]} 16. dxc6 {[%clk 0:01:22.1]} 16... bxc6
{[%clk 0:01:39.1]} 17. Be3 {[%clk 0:01:21.1]} 17... Rb8 {[%clk 0:01:30.1]} 18.
Rac1 {[%clk 0:01:05.7]} 18... Rfd8 {[%clk 0:01:26.8]} 19. Bf2 {[%clk 0:00:56.9]}
19... Bc5 {[%clk 0:01:25.8]} 20. Ba2 {[%clk 0:00:51.1]} 20... Bxf2+ {[%clk
0:01:21.2]} 21. Qxf2 {[%clk 0:00:50.8]} 21... Nc5 {[%clk 0:01:15]} 22. Rxd8+
{[%clk 0:00:48.1]} 22... Rxd8 {[%clk 0:01:14.6]} 23. Rd1 {[%clk 0:00:39.3]}
23... Nxa4 {[%clk 0:00:46.3]} 24. Rxd8+ {[%clk 0:00:38.2]} 24... Qxd8 {[%clk
0:00:46]} 25. Nxa4 {[%clk 0:00:32.8]} 25... Qd1+ {[%clk 0:00:45.9]} 26. Qf1
{[%clk 0:00:32.9]} 26... Qxa4 {[%clk 0:00:46.5]} 27. Qc4 {[%clk 0:00:31.7]}
27... Qxc4 {[%clk 0:00:46.6]} 28. Bxc4 {[%clk 0:00:32.6]} 28... g5 {[%clk
0:00:38.2]} 29. Kf2 {[%clk 0:00:32.6]} 29... Nd7 {[%clk 0:00:34.7]} 30. Ke3
{[%clk 0:00:32.6]} 30... Kf8 {[%clk 0:00:33.3]} 31. g3 {[%clk 0:00:32]} 31...
Ke7 {[%clk 0:00:32.3]} 32. Kd3 {[%clk 0:00:30.1]} 32... f6 {[%clk 0:00:30.5]}
33. h3 {[%clk 0:00:30.2]} 33... Kd6 {[%clk 0:00:30.4]} 34. Bg8 {[%clk
0:00:29.3]} 34... Kc5 {[%clk 0:00:29.1]} 35. Kc3 {[%clk 0:00:29.2]} 35... Nb6
{[%clk 0:00:29.2]} 36. b3 {[%clk 0:00:29.2]} 36... Nc8 {[%clk 0:00:28.3]} 37.
Be6 {[%clk 0:00:28.3]} 37... Nd6 {[%clk 0:00:28.4]} 38. Bg8 {[%clk 0:00:27.2]}
38... Nb5+ {[%clk 0:00:28.2]} 39. Kd3 {[%clk 0:00:27.7]} 39... Nd4 {[%clk
0:00:25.9]} 40. Ke3 {[%clk 0:00:28]} 40... Kb4 {[%clk 0:00:25.5]} 41. f4 {[%clk
0:00:28.1]} 41... gxf4+ {[%clk 0:00:21.7]} 42. gxf4 {[%clk 0:00:29]} 42... Nxb3
{[%clk 0:00:21.9]} 43. fxe5 {[%clk 0:00:26.9]} 43... fxe5 {[%clk 0:00:22.8]} 44.
Kd3 {[%clk 0:00:22.6]} 44... a4 {[%clk 0:00:22.4]} 45. Kc2 {[%clk 0:00:22.4]}
45... c5 {[%clk 0:00:22.5]} 46. h4 {[%clk 0:00:22]} 46... c4 {[%clk 0:00:22.3]}
47. h5 {[%clk 0:00:22.4]} 47... a3 {[%clk 0:00:22.7]} 48. Kb1 {[%clk 0:00:20.8]}
48... Nd2+ {[%clk 0:00:21.5]} 49. Ka2 {[%clk 0:00:20.8]} 49... Nxe4 {[%clk
0:00:22.4]} 50. Bd5 {[%clk 0:00:19]} 50... Nf6 {[%clk 0:00:22.1]} 0-1

[Event "*** SCC Grand Prix: Titled Tuesday Blitz"]
[Site "Chess.com"]
[Date "2020.07.21"]
[Round "2"]
[White "sotochess"]
[Black "esrosenberg"]
[Result "1-0"]
[WhiteElo "2431"]
[BlackElo "2200"]
[TimeControl "180+1"]
[EndTime "10:17:49 PDT"]
[Termination "sotochess won on time"]

1. e4 {[%clk 0:03:00]} 1... e5 {[%clk 0:02:59.5]} 2. Nf3 {[%clk 0:02:59.6]} 2...
Nc6 {[%clk 0:02:59.7]} 3. Bc4 {[%clk 0:02:59.1]} 3... Nf6 {[%clk 0:02:59]} 4.
Ng5 {[%clk 0:02:58.9]} 4... d5 {[%clk 0:02:58.8]} 5. exd5 {[%clk 0:02:58.7]}
5... Na5 {[%clk 0:02:59]} 6. Bb5+ {[%clk 0:02:58.3]} 6... c6 {[%clk 0:02:59.3]}
7. dxc6 {[%clk 0:02:58.3]} 7... bxc6 {[%clk 0:02:59.4]} 8. Bd3 {[%clk
0:02:58.4]} 8... Nd5 {[%clk 0:02:55]} 9. Nf3 {[%clk 0:02:54.1]} 9... Bd6 {[%clk
0:02:53.5]} 10. O-O {[%clk 0:02:53.4]} 10... O-O {[%clk 0:02:50.2]} 11. Re1
{[%clk 0:02:53.2]} 11... f5 {[%clk 0:02:50.2]} 12. Nxe5 {[%clk 0:02:52.7]} 12...
Qf6 {[%clk 0:02:48.1]} 13. Nc4 {[%clk 0:02:49.3]} 13... Nxc4 {[%clk 0:02:37.9]}
14. Bxc4 {[%clk 0:02:49.2]} 14... Bxh2+ {[%clk 0:02:24.8]} 15. Kxh2 {[%clk
0:02:48.9]} 15... Qh4+ {[%clk 0:02:25.1]} 16. Kg1 {[%clk 0:02:49.3]} 16... Qxc4
{[%clk 0:02:25.7]} 17. d4 {[%clk 0:02:50.2]} 17... f4 {[%clk 0:02:19.2]} 18. b3
{[%clk 0:02:49.7]} 18... Qa6 {[%clk 0:01:12.2]} 19. c4 {[%clk 0:02:48.8]} 19...
f3 {[%clk 0:00:42]} 20. Ba3 {[%clk 0:02:31.2]} 20... c5 {[%clk 0:00:19.1]} 21.
Bxc5 {[%clk 0:02:19.7]} 21... Qg6 {[%clk 0:00:18.1]} 22. g3 {[%clk 0:02:19.4]}
22... Nf4 {[%clk 0:00:12.4]} 23. Bxf8 {[%clk 0:01:24.5]} 23... Ne2+ {[%clk
0:00:10.2]} 24. Rxe2 {[%clk 0:01:24.3]} 24... fxe2 {[%clk 0:00:08.7]} 25. Qxe2
{[%clk 0:01:24.4]} 25... Bb7 {[%clk 0:00:08.7]} 26. Ba3 {[%clk 0:01:03]} 26...
Re8 {[%clk 0:00:08.3]} 27. Qf1 {[%clk 0:00:52.6]} 27... Qe4 {[%clk 0:00:07.5]}
28. d5 {[%clk 0:00:52.5]} 28... Re5 {[%clk 0:00:07.5]} 29. Nc3 {[%clk
0:00:51.3]} 29... Qf3 {[%clk 0:00:07.2]} 30. Re1 {[%clk 0:00:49.6]} 30... Qxc3
{[%clk 0:00:06.7]} 31. Rxe5 {[%clk 0:00:48.6]} 31... Qxe5 {[%clk 0:00:07.6]} 32.
Qd1 {[%clk 0:00:48.6]} 32... h5 {[%clk 0:00:06.9]} 33. Bc5 {[%clk 0:00:48.1]}
33... h4 {[%clk 0:00:06.4]} 34. gxh4 {[%clk 0:00:47.8]} 34... a5 {[%clk
0:00:05.2]} 35. Be3 {[%clk 0:00:47.6]} 35... a4 {[%clk 0:00:04.6]} 36. Qg4
{[%clk 0:00:46.2]} 36... Qa1+ {[%clk 0:00:03.8]} 37. Kh2 {[%clk 0:00:45.4]}
37... Qxa2 {[%clk 0:00:03.7]} 38. Qe6+ {[%clk 0:00:44.2]} 38... Kh7 {[%clk
0:00:03.1]} 39. Qf5+ {[%clk 0:00:44.2]} 39... Kg8 {[%clk 0:00:02.9]} 40. Qe6+
{[%clk 0:00:43.2]} 40... Kh7 {[%clk 0:00:03.2]} 41. Qe4+ {[%clk 0:00:43.7]}
41... Kg8 {[%clk 0:00:02.7]} 42. bxa4 {[%clk 0:00:43.7]} 42... Qxa4 {[%clk
0:00:02]} 43. h5 {[%clk 0:00:44.3]} 43... Qd7 {[%clk 0:00:01.7]} 44. Bd4 {[%clk
0:00:42.4]} 44... Bc8 {[%clk 0:00:02]} 45. Qg2 {[%clk 0:00:36.2]} 45... Qc7+
{[%clk 0:00:02.2]} 46. Kg1 {[%clk 0:00:35.1]} 46... Qd7 {[%clk 0:00:02.2]} 47.
h6 {[%clk 0:00:33.8]} 47... g6 {[%clk 0:00:02.2]} 48. Qxg6+ {[%clk 0:00:33.9]}
48... Kf8 {[%clk 0:00:02.7]} 49. Bc5+ {[%clk 0:00:34]} 1-0